[Event "*** Titled Tuesday Blitz"]
[Site "Chess.com"]
[Date "2018.10.02"]
[Round "3"]
[White "ChainsOfFantasia"]
[Black "WPWPWP-2015"]
[Result "0-1"]
[WhiteElo "2341"]
[BlackElo "2297"]
[TimeControl "180+2"]
[EndTime "13:37:12 PDT"]
[Termination "WPWPWP-2015 won by resignation"]

1. Nc3 {[%clk 0:03:01.9]} 1... e5 {[%clk 0:02:59.3]} 2. e3 {[%clk 0:03:02]} 2...
Nf6 {[%clk 0:02:59.4]} 3. d4 {[%clk 0:03:02.2]} 3... exd4 {[%clk 0:03:00]} 4.
exd4 {[%clk 0:03:03.1]} 4... d5 {[%clk 0:03:01]} 5. Nf3 {[%clk 0:03:04.2]} 5...
h6 {[%clk 0:02:59.8]} 6. Bd3 {[%clk 0:03:05.2]} 6... Bd6 {[%clk 0:03:00.2]} 7.
O-O {[%clk 0:03:05.9]} 7... O-O {[%clk 0:03:00.8]} 8. Ne2 {[%clk 0:03:07.1]}
8... c6 {[%clk 0:03:01.1]} 9. Bf4 {[%clk 0:03:08.2]} 9... Bg4 {[%clk 0:03:00.5]}
10. Bxd6 {[%clk 0:03:07.7]} 10... Qxd6 {[%clk 0:03:00.6]} 11. Ng3 {[%clk
0:03:08.8]} 11... Re8 {[%clk 0:02:55.6]} 12. h3 {[%clk 0:03:09.8]} 12... Be6
{[%clk 0:02:50.7]} 13. Re1 {[%clk 0:03:10.1]} 13... Nbd7 {[%clk 0:02:51.1]} 14.
Ne5 {[%clk 0:03:09.5]} 14... Nf8 {[%clk 0:02:50.3]} 15. Qf3 {[%clk 0:03:09.3]}
15... c5 {[%clk 0:02:47.7]} 16. c3 {[%clk 0:03:06.9]} 16... cxd4 {[%clk
0:02:48.7]} 17. cxd4 {[%clk 0:03:08.8]} 17... Qb6 {[%clk 0:02:49]} 18. Rad1
{[%clk 0:03:03.3]} 18... Qxb2 {[%clk 0:02:47.7]} 19. Nh5 {[%clk 0:02:43]} 19...
Nxh5 {[%clk 0:02:41.5]} 20. Qxh5 {[%clk 0:02:44.9]} 20... Rad8 {[%clk
0:01:58.6]} 21. Re3 {[%clk 0:02:44.8]} 21... f6 {[%clk 0:01:47.8]} 22. Ng4
{[%clk 0:01:33.5]} 22... Bxg4 {[%clk 0:01:33.6]} 23. Qxg4 {[%clk 0:01:33.1]}
23... Rxe3 {[%clk 0:01:24.5]} 24. fxe3 {[%clk 0:01:35]} 24... Qb6 {[%clk
0:01:24.7]} 25. Rb1 {[%clk 0:01:30.7]} 25... Qc6 {[%clk 0:01:24.3]} 26. Qf5
{[%clk 0:01:26]} 26... b6 {[%clk 0:01:22.4]} 27. Bb5 {[%clk 0:01:22.6]} 27...
Qe6 {[%clk 0:01:21.2]} 28. Qxe6+ {[%clk 0:01:21.3]} 28... Nxe6 {[%clk
0:01:21.6]} 29. Rc1 {[%clk 0:01:23.2]} 29... Kf7 {[%clk 0:01:19.5]} 30. Rc6
{[%clk 0:01:21.9]} 30... Ke7 {[%clk 0:01:20.1]} 31. a4 {[%clk 0:01:22.1]} 31...
f5 {[%clk 0:01:19]} 32. g3 {[%clk 0:01:21.6]} 32... Ra8 {[%clk 0:01:16.3]} 33.
Bd3 {[%clk 0:01:19.8]} 33... Kd7 {[%clk 0:01:12.4]} 34. Rc1 {[%clk 0:01:20.4]}
34... g6 {[%clk 0:01:12.7]} 35. Bb5+ {[%clk 0:01:17.3]} 35... Ke7 {[%clk
0:01:13.5]} 36. Kf2 {[%clk 0:01:18.4]} 36... a6 {[%clk 0:01:12.9]} 37. Bd3
{[%clk 0:01:15.5]} 37... Kd6 {[%clk 0:01:13]} 38. Ke2 {[%clk 0:01:14.4]} 38...
Nc7 {[%clk 0:01:13]} 39. g4 {[%clk 0:01:14.9]} 39... Rf8 {[%clk 0:01:10.5]} 40.
gxf5 {[%clk 0:01:15.2]} 40... gxf5 {[%clk 0:01:11.6]} 41. Rg1 {[%clk 0:01:15.1]}
41... Rf6 {[%clk 0:01:11.4]} 42. Rg8 {[%clk 0:01:10.9]} 42... b5 {[%clk
0:01:10.8]} 43. axb5 {[%clk 0:01:09.5]} 43... axb5 {[%clk 0:01:11.3]} 44. Rc8
{[%clk 0:01:06]} 44... Kd7 {[%clk 0:01:09.6]} 45. Rb8 {[%clk 0:01:06]} 45... Kc6
{[%clk 0:01:10.6]} 46. Rc8 {[%clk 0:01:06.5]} 46... b4 {[%clk 0:01:10.1]} 47.
Rb8 {[%clk 0:01:05.5]} 47... f4 {[%clk 0:01:09.4]} 48. Rxb4 {[%clk 0:01:05.3]}
48... Re6 {[%clk 0:01:07.8]} 49. Kd2 {[%clk 0:00:53.5]} 49... Rxe3 {[%clk
0:01:06.2]} 50. Bf1 {[%clk 0:00:51.3]} 50... Rf3 {[%clk 0:01:05.1]} 51. Ke2
{[%clk 0:00:50.5]} 51... Re3+ {[%clk 0:01:03.5]} 52. Kf2 {[%clk 0:00:51.6]}
52... Ne6 {[%clk 0:01:03.4]} 53. Ra4 {[%clk 0:00:49.8]} 53... Kd7 {[%clk
0:00:41.3]} 54. Ra7+ {[%clk 0:00:48.1]} 54... Kd6 {[%clk 0:00:41.7]} 55. Rh7
{[%clk 0:00:48.9]} 55... Re4 {[%clk 0:00:39.4]} 56. Rxh6 {[%clk 0:00:49.1]}
56... Rxd4 {[%clk 0:00:40.2]} 57. h4 {[%clk 0:00:50]} 57... Ke5 {[%clk 0:00:38]}
58. h5 {[%clk 0:00:49.6]} 58... Ng5 {[%clk 0:00:37.4]} 59. Ra6 {[%clk
0:00:39.2]} 59... Rd2+ {[%clk 0:00:36.9]} 60. Be2 {[%clk 0:00:36.9]} 60... f3
{[%clk 0:00:37.3]} 61. h6 {[%clk 0:00:34.3]} 61... Rxe2+ {[%clk 0:00:35.8]} 62.
Kf1 {[%clk 0:00:34.8]} 62... Rh2 {[%clk 0:00:35.5]} 63. Rg6 {[%clk 0:00:33.7]}
63... Ne4 {[%clk 0:00:35.2]} 64. h7 {[%clk 0:00:24.3]} 64... Rh1+ {[%clk
0:00:33.5]} 65. Rg1 {[%clk 0:00:23.6]} 65... Rxh7 {[%clk 0:00:34]} 0-1

[Event "*** Titled Tuesday Blitz"]
[Site "Chess.com"]
[Date "2018.10.02"]
[Round "3"]
[White "Shant_Sargsyan"]
[Black "Aygehovit1992"]
[Result "1-0"]
[WhiteElo "2908"]
[BlackElo "2662"]
[TimeControl "180+2"]
[EndTime "13:37:24 PDT"]
[Termination "Shant_Sargsyan won by resignation"]

1. d4 {[%clk 0:03:01.5]} 1... Nf6 {[%clk 0:03:00.4]} 2. c4 {[%clk 0:03:02.6]}
2... g6 {[%clk 0:03:01.4]} 3. Nc3 {[%clk 0:03:03.2]} 3... Bg7 {[%clk 0:03:02.9]}
4. g3 {[%clk 0:03:03.3]} 4... O-O {[%clk 0:03:04.3]} 5. Bg2 {[%clk 0:03:04.6]}
5... d6 {[%clk 0:03:05.9]} 6. Nf3 {[%clk 0:03:05.9]} 6... Nc6 {[%clk 0:03:07.4]}
7. O-O {[%clk 0:03:06.4]} 7... Bf5 {[%clk 0:03:08.9]} 8. Bg5 {[%clk 0:03:05.8]}
8... h6 {[%clk 0:03:04.8]} 9. Be3 {[%clk 0:03:06.7]} 9... e5 {[%clk 0:03:00.9]}
10. dxe5 {[%clk 0:03:03.8]} 10... Ng4 {[%clk 0:03:00.5]} 11. Bd2 {[%clk
0:03:00.5]} 11... Ngxe5 {[%clk 0:02:58]} 12. Nxe5 {[%clk 0:03:01.5]} 12... dxe5
{[%clk 0:02:55]} 13. Be3 {[%clk 0:03:02.5]} 13... Nd4 {[%clk 0:02:53.5]} 14. Rc1
{[%clk 0:02:54.2]} 14... c6 {[%clk 0:02:51.3]} 15. Qd2 {[%clk 0:02:55.4]} 15...
Kh7 {[%clk 0:02:51.1]} 16. Rfd1 {[%clk 0:02:56.8]} 16... Qe7 {[%clk 0:02:44.6]}
17. b3 {[%clk 0:02:50]} 17... Rad8 {[%clk 0:02:45.1]} 18. Qb2 {[%clk 0:02:50.9]}
18... Bg4 {[%clk 0:02:33.4]} 19. h3 {[%clk 0:02:49.1]} 19... Be6 {[%clk
0:02:34.3]} 20. Rd2 {[%clk 0:02:39.9]} 20... f5 {[%clk 0:02:35.1]} 21. f4 {[%clk
0:02:40.9]} 21... exf4 {[%clk 0:02:31.1]} 22. Bxf4 {[%clk 0:02:42.1]} 22... g5
{[%clk 0:02:28.3]} 23. Be3 {[%clk 0:02:43.1]} 23... f4 {[%clk 0:02:29.6]} 24.
Bf2 {[%clk 0:02:37.5]} 24... f3 {[%clk 0:02:22.3]} 25. exf3 {[%clk 0:02:35.3]}
25... Nxf3+ {[%clk 0:02:12.3]} 26. Bxf3 {[%clk 0:02:36.2]} 26... Rxf3 {[%clk
0:02:14.2]} 27. Rxd8 {[%clk 0:02:29.4]} 27... Qxd8 {[%clk 0:02:16.1]} 28. Qe2
{[%clk 0:02:29.8]} 28... Qf6 {[%clk 0:01:39.4]} 29. Ne4 {[%clk 0:02:29.8]} 29...
Qf5 {[%clk 0:01:33.5]} 30. Nd6 {[%clk 0:02:13.8]} 30... Qf6 {[%clk 0:00:48.6]}
31. Ne8 {[%clk 0:02:11.1]} 31... Qb2 {[%clk 0:00:29.5]} 32. Re1 {[%clk
0:01:52.7]} 32... Rxf2 {[%clk 0:00:19.2]} 33. Kxf2 {[%clk 0:01:41.3]} 33... Bxh3
{[%clk 0:00:07]} 34. Nxg7 {[%clk 0:01:26.1]} 34... Qd4+ {[%clk 0:00:06.3]} 35.
Qe3 {[%clk 0:01:24.9]} 35... Qxg7 {[%clk 0:00:06.8]} 36. Qe4+ {[%clk 0:01:23.4]}
36... Kg8 {[%clk 0:00:06.4]} 37. Qe8+ {[%clk 0:01:24.5]} 37... Qf8+ {[%clk
0:00:04.8]} 38. Qxf8+ {[%clk 0:01:24.1]} 38... Kxf8 {[%clk 0:00:06.7]} 39. Rh1
{[%clk 0:01:25.6]} 39... g4 {[%clk 0:00:05.9]} 40. Ke3 {[%clk 0:01:22.7]} 40...
Kf7 {[%clk 0:00:06.8]} 41. Kf4 {[%clk 0:01:20.1]} 41... Ke6 {[%clk 0:00:07.7]}
42. Re1+ {[%clk 0:01:19.1]} 42... Kd6 {[%clk 0:00:08.8]} 43. Re5 {[%clk
0:01:17.1]} 43... b6 {[%clk 0:00:09.7]} 44. Rh5 {[%clk 0:01:18.1]} 44... a5
{[%clk 0:00:10.9]} 45. a3 {[%clk 0:01:15.4]} 45... Bf1 {[%clk 0:00:05]} 46.
Rxh6+ {[%clk 0:00:59.7]} 46... Kc5 {[%clk 0:00:06.1]} 47. Ke3 {[%clk 0:00:54.1]}
47... a4 {[%clk 0:00:04.8]} 48. Rh5+ {[%clk 0:00:55.5]} 48... Kd6 {[%clk
0:00:05.4]} 49. bxa4 {[%clk 0:00:57.4]} 49... Bxc4 {[%clk 0:00:06]} 50. a5
{[%clk 0:00:59.3]} 50... bxa5 {[%clk 0:00:05.4]} 51. Rxa5 {[%clk 0:01:01.2]}
51... c5 {[%clk 0:00:05.9]} 52. Ra8 {[%clk 0:01:01]} 52... Kc6 {[%clk
0:00:06.6]} 53. Rh8 {[%clk 0:00:59.7]} 53... Kb5 {[%clk 0:00:06.4]} 54. Rh5
{[%clk 0:00:53.4]} 54... Bb3 {[%clk 0:00:05.2]} 55. Kd3 {[%clk 0:00:53.5]} 55...
Bd1 {[%clk 0:00:05.9]} 56. Kc3 {[%clk 0:00:54.1]} 56... Bf3 {[%clk 0:00:06]} 57.
a4+ {[%clk 0:00:55.3]} 57... Kxa4 {[%clk 0:00:07.3]} 58. Rxc5 {[%clk 0:00:56.2]}
58... Bd1 {[%clk 0:00:08.6]} 59. Rg5 {[%clk 0:00:57.1]} 59... Bf3 {[%clk
0:00:09.7]} 60. Kc4 {[%clk 0:00:55.9]} 60... Be2+ {[%clk 0:00:10.2]} 61. Kd4
{[%clk 0:00:56.3]} 61... Kb4 {[%clk 0:00:11.5]} 62. Ke3 {[%clk 0:00:58]} 62...
Bf3 {[%clk 0:00:12.5]} 63. Kf4 {[%clk 0:00:59.9]} 63... Kc4 {[%clk 0:00:12.8]}
64. Rxg4 {[%clk 0:00:55]} 64... Bxg4 {[%clk 0:00:13.8]} 65. Kxg4 {[%clk
0:00:56.9]} 65... Kd5 {[%clk 0:00:15.7]} 66. Kf5 {[%clk 0:00:58.6]} 1-0

[Event "*** Titled Tuesday Blitz"]
[Site "Chess.com"]
[Date "2018.10.02"]
[Round "3"]
[White "Korchmar_Vasiliy"]
[Black "SantoBlue"]
[Result "0-1"]
[WhiteElo "2672"]
[BlackElo "2826"]
[TimeControl "180+2"]
[EndTime "13:37:31 PDT"]
[Termination "SantoBlue won by resignation"]

1. d4 {[%clk 0:03:01]} 1... Nf6 {[%clk 0:03:00.5]} 2. Nf3 {[%clk 0:03:02.3]}
2... e6 {[%clk 0:03:01.3]} 3. Bf4 {[%clk 0:03:03.3]} 3... b6 {[%clk 0:03:01.6]}
4. e3 {[%clk 0:03:04.5]} 4... Bb7 {[%clk 0:03:03.1]} 5. Nbd2 {[%clk 0:03:05.6]}
5... Be7 {[%clk 0:03:04.6]} 6. h3 {[%clk 0:03:06.7]} 6... O-O {[%clk 0:03:06.1]}
7. c3 {[%clk 0:03:06.5]} 7... c5 {[%clk 0:03:07.4]} 8. a3 {[%clk 0:03:06.7]}
8... Nc6 {[%clk 0:03:08.1]} 9. Bd3 {[%clk 0:03:07.1]} 9... d6 {[%clk 0:03:07.2]}
10. Qe2 {[%clk 0:03:05.6]} 10... Re8 {[%clk 0:03:05.7]} 11. O-O {[%clk
0:03:02.6]} 11... Bf8 {[%clk 0:03:05.5]} 12. Bh2 {[%clk 0:03:03.4]} 12... a6
{[%clk 0:03:02.2]} 13. Rad1 {[%clk 0:03:01.7]} 13... b5 {[%clk 0:02:39.8]} 14.
e4 {[%clk 0:03:02.6]} 14... cxd4 {[%clk 0:02:38.8]} 15. cxd4 {[%clk 0:03:04.5]}
15... e5 {[%clk 0:02:37]} 16. d5 {[%clk 0:02:30.9]} 16... Ne7 {[%clk 0:02:34.2]}
17. b4 {[%clk 0:02:31.5]} 17... Ng6 {[%clk 0:02:31.6]} 18. Nb3 {[%clk
0:02:30.6]} 18... Bc8 {[%clk 0:02:24.3]} 19. Na5 {[%clk 0:02:28.8]} 19... Bd7
{[%clk 0:02:24.2]} 20. Rc1 {[%clk 0:02:25.5]} 20... Qb6 {[%clk 0:02:17.5]} 21.
Rc3 {[%clk 0:02:06.5]} 21... Rac8 {[%clk 0:01:53.3]} 22. Rfc1 {[%clk 0:02:06.9]}
22... Rxc3 {[%clk 0:01:43.9]} 23. Rxc3 {[%clk 0:02:08.8]} 23... Nh5 {[%clk
0:01:35.1]} 24. Qe3 {[%clk 0:01:56.8]} 24... Qxe3 {[%clk 0:01:10.2]} 25. fxe3
{[%clk 0:01:58.7]} 25... Rc8 {[%clk 0:01:11.3]} 26. Rxc8 {[%clk 0:01:54.1]}
26... Bxc8 {[%clk 0:01:13.2]} 27. Kf2 {[%clk 0:01:32.9]} 27... Nf6 {[%clk
0:01:03.7]} 28. Nd2 {[%clk 0:01:15.7]} 28... Nd7 {[%clk 0:01:01.6]} 29. Nb1
{[%clk 0:01:14.8]} 29... Nb6 {[%clk 0:01:01.6]} 30. Nc3 {[%clk 0:01:16.3]} 30...
f6 {[%clk 0:00:50.6]} 31. Be2 {[%clk 0:01:04.3]} 31... Kf7 {[%clk 0:00:41.7]}
32. Nc6 {[%clk 0:01:03.9]} 32... Ke8 {[%clk 0:00:32.8]} 33. Bh5 {[%clk
0:00:55.4]} 33... Kd7 {[%clk 0:00:21]} 34. Be2 {[%clk 0:00:49.4]} 34... Ne7
{[%clk 0:00:16.2]} 35. Na5 {[%clk 0:00:49.2]} 35... Kc7 {[%clk 0:00:16.2]} 36.
g4 {[%clk 0:00:40.8]} 36... g6 {[%clk 0:00:16.9]} 37. Bg3 {[%clk 0:00:35.2]}
37... f5 {[%clk 0:00:17.2]} 38. exf5 {[%clk 0:00:29.1]} 38... gxf5 {[%clk
0:00:18.2]} 39. gxf5 {[%clk 0:00:16.1]} 39... Bxf5 {[%clk 0:00:18.5]} 40. h4
{[%clk 0:00:10.9]} 40... Nbxd5 {[%clk 0:00:15.2]} 41. Nxd5+ {[%clk 0:00:05.7]}
41... Nxd5 {[%clk 0:00:17.1]} 42. Bf3 {[%clk 0:00:06.1]} 42... e4 {[%clk
0:00:12.7]} 43. Bg2 {[%clk 0:00:07.3]} 43... Bh6 {[%clk 0:00:13.3]} 44. Nb3
{[%clk 0:00:04.2]} 44... Bxe3+ {[%clk 0:00:13.6]} 45. Ke2 {[%clk 0:00:04.9]}
45... Bg4+ {[%clk 0:00:12.7]} 46. Ke1 {[%clk 0:00:05.3]} 46... Nc3 {[%clk
0:00:12.1]} 47. Nc5 {[%clk 0:00:04.4]} 47... Bf3 {[%clk 0:00:08.1]} 48. Bh3
{[%clk 0:00:05.9]} 48... Kc6 {[%clk 0:00:06.1]} 49. Ne6 {[%clk 0:00:04.5]} 49...
d5 {[%clk 0:00:05.9]} 50. Nd8+ {[%clk 0:00:04.7]} 50... Kb6 {[%clk 0:00:06.3]}
51. Ne6 {[%clk 0:00:04.8]} 51... d4 {[%clk 0:00:07.2]} 52. Bc7+ {[%clk
0:00:04.6]} 52... Kc6 {[%clk 0:00:06.4]} 53. Be5 {[%clk 0:00:06.5]} 53... Kd5
{[%clk 0:00:06.6]} 54. Bg7 {[%clk 0:00:07.6]} 54... Kc4 {[%clk 0:00:06.8]} 55.
Nc5 {[%clk 0:00:08.1]} 55... d3 {[%clk 0:00:07.5]} 56. Be6+ {[%clk 0:00:08.8]}
56... Nd5 {[%clk 0:00:07.9]} 57. Nb3 {[%clk 0:00:03.2]} 57... Kxb3 {[%clk
0:00:08.1]} 58. Bxd5+ {[%clk 0:00:04.9]} 58... Kc2 {[%clk 0:00:09.7]} 0-1

[Event "*** Titled Tuesday Blitz"]
[Site "Chess.com"]
[Date "2018.10.02"]
[Round "3"]
[White "TastyFrenchFries"]
[Black "PaulfromSPb"]
[Result "1-0"]
[WhiteElo "2408"]
[BlackElo "2506"]
[TimeControl "180+2"]
[EndTime "13:37:41 PDT"]
[Termination "TastyFrenchFries won by checkmate"]

1. Na3 {[%clk 0:02:56]} 1... d5 {[%clk 0:03:00]} 2. Nh3 {[%clk 0:02:56]} 2...
Bxh3 {[%clk 0:02:59.1]} 3. gxh3 {[%clk 0:02:53.7]} 3... e5 {[%clk 0:03:00.2]} 4.
c4 {[%clk 0:02:32.4]} 4... d4 {[%clk 0:02:53.9]} 5. Bg2 {[%clk 0:02:27.8]} 5...
c6 {[%clk 0:02:55]} 6. Qb3 {[%clk 0:02:17.8]} 6... Qc7 {[%clk 0:02:53]} 7. d3
{[%clk 0:02:15.8]} 7... Nf6 {[%clk 0:02:51.8]} 8. e3 {[%clk 0:02:13.9]} 8...
Nbd7 {[%clk 0:02:48.2]} 9. Nc2 {[%clk 0:02:10.4]} 9... dxe3 {[%clk 0:02:42.2]}
10. Bxe3 {[%clk 0:02:09.2]} 10... Bc5 {[%clk 0:02:42.3]} 11. O-O-O {[%clk
0:02:04]} 11... O-O-O {[%clk 0:02:37.6]} 12. d4 {[%clk 0:02:00.5]} 12... exd4
{[%clk 0:02:34.7]} 13. Nxd4 {[%clk 0:02:02.4]} 13... Rhe8 {[%clk 0:02:25.5]} 14.
Kb1 {[%clk 0:01:53.5]} 14... Qb6 {[%clk 0:02:20.2]} 15. Qc3 {[%clk 0:01:47.1]}
15... g6 {[%clk 0:02:11.4]} 16. a3 {[%clk 0:01:37.8]} 16... a5 {[%clk
0:02:07.7]} 17. Rhe1 {[%clk 0:01:28.9]} 17... Ne4 {[%clk 0:02:05.8]} 18. Bxe4
{[%clk 0:01:29.6]} 18... Rxe4 {[%clk 0:02:06.1]} 19. Rd2 {[%clk 0:01:29.2]}
19... f5 {[%clk 0:01:51.7]} 20. f3 {[%clk 0:01:28.2]} 20... Ree8 {[%clk
0:01:46]} 21. Red1 {[%clk 0:01:27]} 21... Nf6 {[%clk 0:01:19.8]} 22. Bg5 {[%clk
0:01:19.9]} 22... Bxd4 {[%clk 0:01:11.1]} 23. Rxd4 {[%clk 0:01:21.8]} 23... Rxd4
{[%clk 0:01:11.8]} 24. Rxd4 {[%clk 0:01:20.3]} 24... Nd7 {[%clk 0:01:12.7]} 25.
Rd1 {[%clk 0:01:12.1]} 25... Qc7 {[%clk 0:01:11.1]} 26. Qd4 {[%clk 0:01:10.8]}
26... c5 {[%clk 0:00:52.2]} 27. Qd5 {[%clk 0:01:05.8]} 27... Nb6 {[%clk
0:00:51.9]} 28. Qd3 {[%clk 0:01:05.3]} 28... Qd7 {[%clk 0:00:48.5]} 29. Qc2
{[%clk 0:01:03.3]} 29... Qe6 {[%clk 0:00:49]} 30. Qc3 {[%clk 0:01:01.1]} 30...
Nxc4 {[%clk 0:00:36.8]} 31. Rc1 {[%clk 0:00:48.7]} 31... b5 {[%clk 0:00:17.8]}
32. a4 {[%clk 0:00:45.9]} 32... Qe5 {[%clk 0:00:16.8]} 33. axb5 {[%clk
0:00:43.9]} 33... Qxc3 {[%clk 0:00:17.7]} 34. Rxc3 {[%clk 0:00:45.8]} 34... Nd6
{[%clk 0:00:18.1]} 35. Rxc5+ {[%clk 0:00:43.6]} 35... Kb7 {[%clk 0:00:19.6]} 36.
Rd5 {[%clk 0:00:41.1]} 36... Re6 {[%clk 0:00:19.9]} 37. h4 {[%clk 0:00:40.6]}
37... a4 {[%clk 0:00:19.5]} 38. Ka2 {[%clk 0:00:39.5]} 38... Nc4 {[%clk
0:00:20.5]} 39. Rc5 {[%clk 0:00:38.5]} 39... Nd6 {[%clk 0:00:19.6]} 40. Ka3
{[%clk 0:00:35.3]} 40... Kb6 {[%clk 0:00:19.2]} 41. Kb4 {[%clk 0:00:29]} 41...
Nb7 {[%clk 0:00:19.5]} 42. Rc4 {[%clk 0:00:21.4]} 42... Nd6 {[%clk 0:00:20.3]}
43. Rc6+ {[%clk 0:00:20.9]} 43... Kb7 {[%clk 0:00:21.5]} 44. Bf4 {[%clk
0:00:20.9]} 44... Re2 {[%clk 0:00:21.4]} 45. Bxd6 {[%clk 0:00:20.1]} 45... Rxb2+
{[%clk 0:00:22.3]} 46. Kxa4 {[%clk 0:00:19.5]} 46... Rf2 {[%clk 0:00:23]} 47.
Rc3 {[%clk 0:00:19.4]} 47... Rb2 {[%clk 0:00:22.6]} 48. Ba3 {[%clk 0:00:19.5]}
48... Ra2 {[%clk 0:00:23.5]} 49. Kb3 {[%clk 0:00:20.4]} 49... Rxh2 {[%clk
0:00:24.1]} 50. Re3 {[%clk 0:00:21.8]} 50... Rxh4 {[%clk 0:00:24.9]} 51. Bc5
{[%clk 0:00:22.1]} 51... Rh3 {[%clk 0:00:24.8]} 52. Kc4 {[%clk 0:00:21.5]} 52...
Rh1 {[%clk 0:00:25.3]} 53. Kd5 {[%clk 0:00:22.3]} 53... Rd1+ {[%clk 0:00:26]}
54. Bd4 {[%clk 0:00:22.2]} 54... Rb1 {[%clk 0:00:26]} 55. b6 {[%clk 0:00:22.7]}
55... Rb5+ {[%clk 0:00:26.5]} 56. Ke6 {[%clk 0:00:23.1]} 56... Rb4 {[%clk
0:00:27.8]} 57. Kd5 {[%clk 0:00:23.8]} 57... Rb5+ {[%clk 0:00:29]} 58. Kc4
{[%clk 0:00:25.3]} 58... Rb1 {[%clk 0:00:29.6]} 59. Kd5 {[%clk 0:00:26.5]} 59...
h5 {[%clk 0:00:29.9]} 60. Re7+ {[%clk 0:00:25.9]} 60... Kc8 {[%clk 0:00:30.6]}
61. Kc6 {[%clk 0:00:27]} 61... Kd8 {[%clk 0:00:31.3]} 62. Rg7 {[%clk 0:00:25.7]}
62... h4 {[%clk 0:00:32.3]} 63. Bc5 {[%clk 0:00:26.4]} 63... Ke8 {[%clk
0:00:32.3]} 64. b7 {[%clk 0:00:24.7]} 64... h3 {[%clk 0:00:33.1]} 65. Rh7 {[%clk
0:00:21.9]} 65... g5 {[%clk 0:00:31.2]} 66. Rxh3 {[%clk 0:00:22.5]} 66... g4
{[%clk 0:00:32.1]} 67. fxg4 {[%clk 0:00:24]} 67... fxg4 {[%clk 0:00:33.2]} 68.
Rh8+ {[%clk 0:00:25.5]} 68... Kf7 {[%clk 0:00:34.3]} 69. b8=Q {[%clk 0:00:27.4]}
69... Rxb8 {[%clk 0:00:34.2]} 70. Rxb8 {[%clk 0:00:29.3]} 70... Ke6 {[%clk
0:00:35.9]} 71. Rb1 {[%clk 0:00:30.8]} 71... Kf5 {[%clk 0:00:37]} 72. Rg1 {[%clk
0:00:32.7]} 72... Kf4 {[%clk 0:00:38.3]} 73. Kb5 {[%clk 0:00:34.6]} 73... Kf3
{[%clk 0:00:39.6]} 74. Kc4 {[%clk 0:00:36.5]} 74... g3 {[%clk 0:00:41.1]} 75.
Kd3 {[%clk 0:00:37.4]} 75... Kf4 {[%clk 0:00:41.8]} 76. Ke2 {[%clk 0:00:38.8]}
76... Kg4 {[%clk 0:00:43.1]} 77. Be3 {[%clk 0:00:39.9]} 77... Kh3 {[%clk
0:00:44.2]} 78. Kf3 {[%clk 0:00:40.7]} 78... Kh2 {[%clk 0:00:44.6]} 79. Rg2+
{[%clk 0:00:41]} 79... Kh1 {[%clk 0:00:46.5]} 80. Rxg3 {[%clk 0:00:41.1]} 80...
Kh2 {[%clk 0:00:47.3]} 81. Kf2 {[%clk 0:00:41.9]} 81... Kh1 {[%clk 0:00:48.5]}
82. Rh3# {[%clk 0:00:43.8]} 1-0

[Event "*** Titled Tuesday Blitz"]
[Site "Chess.com"]
[Date "2018.10.02"]
[Round "3"]
[White "Maikrosoft63"]
[Black "TrimitziosP7"]
[Result "1-0"]
[WhiteElo "2557"]
[BlackElo "2560"]
[TimeControl "180+2"]
[EndTime "13:37:54 PDT"]
[Termination "Maikrosoft63 won on time"]

1. e4 {[%clk 0:03:01.8]} 1... c5 {[%clk 0:02:59.1]} 2. Nf3 {[%clk 0:02:59.9]}
2... d6 {[%clk 0:02:59.8]} 3. d4 {[%clk 0:02:54.8]} 3... cxd4 {[%clk 0:03:00.2]}
4. Nxd4 {[%clk 0:02:56.7]} 4... Nf6 {[%clk 0:03:00.8]} 5. Nc3 {[%clk 0:02:57.5]}
5... a6 {[%clk 0:03:01.6]} 6. Be3 {[%clk 0:02:57.9]} 6... Ng4 {[%clk 0:02:57.4]}
7. Bg5 {[%clk 0:02:57.2]} 7... Nc6 {[%clk 0:02:56.4]} 8. Be2 {[%clk 0:02:49]}
8... Nf6 {[%clk 0:02:54.7]} 9. Qd2 {[%clk 0:02:36.6]} 9... Qb6 {[%clk 0:02:47]}
10. Nb3 {[%clk 0:02:19.6]} 10... e6 {[%clk 0:02:44.1]} 11. O-O-O {[%clk
0:02:16]} 11... Be7 {[%clk 0:02:35.4]} 12. Be3 {[%clk 0:02:11]} 12... Qc7 {[%clk
0:02:34.2]} 13. g4 {[%clk 0:02:12.6]} 13... b5 {[%clk 0:02:31.9]} 14. f3 {[%clk
0:02:12.6]} 14... Bb7 {[%clk 0:02:31.2]} 15. g5 {[%clk 0:02:13.4]} 15... Nd7
{[%clk 0:02:31.7]} 16. h4 {[%clk 0:02:12.8]} 16... Nce5 {[%clk 0:02:31.5]} 17.
f4 {[%clk 0:02:03.4]} 17... Nc4 {[%clk 0:02:29]} 18. Bxc4 {[%clk 0:02:04]} 18...
Qxc4 {[%clk 0:02:30.9]} 19. Na5 {[%clk 0:01:56.6]} 19... Qc7 {[%clk 0:02:29.2]}
20. Nxb7 {[%clk 0:01:57.5]} 20... Qxb7 {[%clk 0:02:31.1]} 21. Qg2 {[%clk
0:01:51.2]} 21... O-O-O {[%clk 0:02:07.9]} 22. Kb1 {[%clk 0:01:47.8]} 22... Kb8
{[%clk 0:02:00]} 23. h5 {[%clk 0:01:42.6]} 23... g6 {[%clk 0:01:46.5]} 24. Bd4
{[%clk 0:01:38.3]} 24... Rhf8 {[%clk 0:01:24.6]} 25. hxg6 {[%clk 0:01:31.8]}
25... hxg6 {[%clk 0:01:26.5]} 26. a3 {[%clk 0:01:26.4]} 26... Nc5 {[%clk
0:01:19.5]} 27. Qe2 {[%clk 0:01:22.6]} 27... Rc8 {[%clk 0:01:16.6]} 28. Rh7
{[%clk 0:00:58.2]} 28... Rc7 {[%clk 0:01:05.9]} 29. Bf6 {[%clk 0:00:56.6]} 29...
Bxf6 {[%clk 0:01:02.4]} 30. gxf6 {[%clk 0:00:57.5]} 30... Rd8 {[%clk 0:01:03.1]}
31. Qe3 {[%clk 0:00:53.9]} 31... Qc6 {[%clk 0:00:57.8]} 32. Rd4 {[%clk
0:00:49.8]} 32... Rdd7 {[%clk 0:00:32.3]} 33. Na2 {[%clk 0:00:39.3]} 33... a5
{[%clk 0:00:27.3]} 34. Nc3 {[%clk 0:00:38.7]} 34... Rb7 {[%clk 0:00:24.3]} 35.
Rh8+ {[%clk 0:00:33.2]} 35... Kc7 {[%clk 0:00:24.4]} 36. b4 {[%clk 0:00:16.9]}
36... Na6 {[%clk 0:00:15.6]} 37. bxa5 {[%clk 0:00:17.3]} 37... b4 {[%clk
0:00:14.8]} 38. axb4 {[%clk 0:00:17]} 38... Nxb4 {[%clk 0:00:16.7]} 39. Kc1
{[%clk 0:00:16.4]} 39... Qc5 {[%clk 0:00:13.9]} 40. Kd2 {[%clk 0:00:13.9]} 40...
Nc6 {[%clk 0:00:13.7]} 41. Ra4 {[%clk 0:00:13]} 41... Rb4 {[%clk 0:00:06.9]} 42.
Qxc5 {[%clk 0:00:12.4]} 42... dxc5+ {[%clk 0:00:08.8]} 43. Ke3 {[%clk
0:00:12.5]} 43... Rxa4 {[%clk 0:00:09.8]} 44. Nxa4 {[%clk 0:00:14.4]} 44... Nxa5
{[%clk 0:00:09.4]} 45. Nxc5 {[%clk 0:00:15.7]} 45... Rd1 {[%clk 0:00:06.6]} 46.
Rf8 {[%clk 0:00:16.5]} 46... Nc4+ {[%clk 0:00:07.3]} 47. Ke2 {[%clk 0:00:16.8]}
47... Rd2+ {[%clk 0:00:08.7]} 48. Ke1 {[%clk 0:00:17]} 48... Kc6 {[%clk
0:00:10]} 49. Nb3 {[%clk 0:00:17.4]} 49... Rd7 {[%clk 0:00:10.1]} 50. Rc8+
{[%clk 0:00:16.9]} 50... Kb5 {[%clk 0:00:10.4]} 51. Ke2 {[%clk 0:00:14.8]} 51...
Nd6 {[%clk 0:00:08.6]} 52. Rc5+ {[%clk 0:00:15.2]} 52... Kb6 {[%clk 0:00:09.9]}
53. e5 {[%clk 0:00:15.9]} 53... Nf5 {[%clk 0:00:10.3]} 54. Rc4 {[%clk
0:00:16.7]} 54... Rd8 {[%clk 0:00:09.3]} 55. Kf3 {[%clk 0:00:16.6]} 55... Rh8
{[%clk 0:00:10.2]} 56. Nd4 {[%clk 0:00:17.7]} 56... Rh3+ {[%clk 0:00:10.3]} 57.
Kg2 {[%clk 0:00:19.6]} 57... Rh4 {[%clk 0:00:03.5]} 58. Nxf5 {[%clk 0:00:20.5]}
58... gxf5 {[%clk 0:00:05.4]} 59. Kg3 {[%clk 0:00:21.6]} 59... Rg4+ {[%clk
0:00:06.5]} 60. Kf3 {[%clk 0:00:23.2]} 60... Rh4 {[%clk 0:00:06.3]} 61. Rd4
{[%clk 0:00:24.5]} 1-0